[Event "Titled Tuesday Blitz December 13 Early 2022"]
[White "Andreikin, Dmitry"]
[Black "Rakhmanov, Aleksandr"]
[WhiteFideId "4158814"]
[BlackFideId "4173708"]
[WhiteElo "2735"]
[BlackElo "2530"]
[Result "1/2-1/2"]
[Round "11"]
[TimeControl "180+1"]
[Date "2022.12.13"]
[WhiteClock "0:00:19"]
[BlackClock "0:00:36"]

1. e4 {[%clk 0:02:59]}  c5 {[%clk 0:02:53]} 2. b3 {[%clk 0:02:56]}  Nf6 {[%clk 0:02:53]} 3. e5 {[%clk 0:02:55]}  Nd5 {[%clk 0:02:53]} 4. Bb2 {[%clk 0:02:55]}  Nc6 {[%clk 0:02:53]} 5. Nf3 {[%clk 0:02:52]}  g6 {[%clk 0:02:53]} 6. h4 {[%clk 0:02:52]}  Bg7 {[%clk 0:02:49]} 7. h5 {[%clk 0:02:51]}  O-O {[%clk 0:02:48]} 8. hxg6 {[%clk 0:02:31]}  hxg6 {[%clk 0:02:49]} 9. Nc3 {[%clk 0:02:06]}  Nxc3 {[%clk 0:02:39]} 10. Bxc3 {[%clk 0:02:06]}  d6 {[%clk 0:02:38]} 11. exd6 {[%clk 0:01:42]}  exd6 {[%clk 0:02:35]} 12. Be2 {[%clk 0:01:28]}  Re8 {[%clk 0:02:31]} 13. O-O {[%clk 0:01:23]}  Bg4 {[%clk 0:02:29]} 14. Re1 {[%clk 0:01:22]}  d5 {[%clk 0:02:13]} 15. Bxg7 {[%clk 0:01:18]}  Kxg7 {[%clk 0:02:14]} 16. Nh2 {[%clk 0:01:17]}  Bxe2 {[%clk 0:02:12]} 17. Rxe2 {[%clk 0:01:18]}  Qf6 {[%clk 0:02:07]} 18. c3 {[%clk 0:00:48]}  d4 {[%clk 0:02:01]} 19. Rxe8 {[%clk 0:00:42]}  Rxe8 {[%clk 0:02:02]} 20. Qf3 {[%clk 0:00:42]}  dxc3 {[%clk 0:01:29]} 21. dxc3 {[%clk 0:00:40]}  Qxf3 {[%clk 0:01:29]} 22. Nxf3 {[%clk 0:00:40]}  Re2 {[%clk 0:01:30]} 23. Rd1 {[%clk 0:00:39]}  Rxa2 {[%clk 0:01:26]} 24. Rd7 {[%clk 0:00:39]}  Kf6 {[%clk 0:01:05]} 25. Rxb7 {[%clk 0:00:37]}  Rb2 {[%clk 0:00:49]} 26. Rc7 {[%clk 0:00:33]}  Nd8 {[%clk 0:00:41]} 27. Rxc5 {[%clk 0:00:27]}  Rxb3 {[%clk 0:00:39]} 28. Nd4 {[%clk 0:00:25]}  Rb1+ {[%clk 0:00:37]} 29. Kh2 {[%clk 0:00:25]}  Ne6 {[%clk 0:00:38]} 30. Ra5 {[%clk 0:00:19]}  Nxd4 {[%clk 0:00:35]} 31. cxd4 {[%clk 0:00:19]}  Rd1 {[%clk 0:00:36]} 32. Rxa7 {[%clk 0:00:19]}  Rxd4 {[%clk 0:00:36]} 33. Kg3 {[%clk 0:00:19]} 1/2-1/2


[Site "https://www.chess.com"]

[Event "Titled Tuesday Blitz December 13 Early 2022"]
[White "Aradhya, Garg"]
[Black "Goroshkov, Maksym"]
[WhiteFideId "25006746"]
[BlackFideId "14142716"]
[WhiteElo "2278"]
[BlackElo "2258"]
[Result "1/2-1/2"]
[Round "11"]
[TimeControl "180+1"]
[Date "2022.12.13"]
[WhiteClock "0:01:13"]
[BlackClock "0:00:05"]

1. d4 {[%clk 0:03:00]}  Nf6 {[%clk 0:02:59]} 2. c4 {[%clk 0:03:01]}  d6 {[%clk 0:02:57]} 3. Nf3 {[%clk 0:02:59]}  g6 {[%clk 0:02:58]} 4. Nc3 {[%clk 0:02:59]}  Bg7 {[%clk 0:02:58]} 5. g3 {[%clk 0:02:59]}  O-O {[%clk 0:02:59]} 6. Bg2 {[%clk 0:02:59]}  c5 {[%clk 0:02:59]} 7. O-O {[%clk 0:02:58]}  Nc6 {[%clk 0:02:59]} 8. e3 {[%clk 0:02:58]}  Bg4 {[%clk 0:02:58]} 9. h3 {[%clk 0:02:58]}  Bxf3 {[%clk 0:02:57]} 10. Bxf3 {[%clk 0:02:59]}  cxd4 {[%clk 0:02:51]} 11. exd4 {[%clk 0:02:59]}  Qb6 {[%clk 0:02:52]} 12. d5 {[%clk 0:02:39]}  Ne5 {[%clk 0:02:47]} 13. Be2 {[%clk 0:02:39]}  Qc7 {[%clk 0:02:44]} 14. b3 {[%clk 0:02:39]}  Qc8 {[%clk 0:02:43]} 15. Kg2 {[%clk 0:02:38]}  h5 {[%clk 0:02:29]} 16. Bb2 {[%clk 0:02:36]}  Nh7 {[%clk 0:02:28]} 17. f4 {[%clk 0:02:30]}  Nd7 {[%clk 0:02:27]} 18. Rc1 {[%clk 0:02:29]}  Nhf6 {[%clk 0:02:22]} 19. Bd3 {[%clk 0:02:25]}  Nc5 {[%clk 0:02:19]} 20. Bb1 {[%clk 0:02:25]}  a5 {[%clk 0:02:20]} 21. f5 {[%clk 0:02:22]}  g5 {[%clk 0:02:17]} 22. Qd2 {[%clk 0:02:19]}  Nh7 {[%clk 0:02:11]} 23. f6 {[%clk 0:02:17]}  exf6 {[%clk 0:01:52]} 24. Qc2 {[%clk 0:02:15]}  f5 {[%clk 0:01:52]} 25. Rxf5 {[%clk 0:02:15]}  f6 {[%clk 0:01:46]} 26. h4 {[%clk 0:02:04]}  Rf7 {[%clk 0:01:31]} 27. Rcf1 {[%clk 0:01:58]}  gxh4 {[%clk 0:01:22]} 28. Rxh5 {[%clk 0:01:55]}  h3+ {[%clk 0:01:21]} 29. Rxh3 {[%clk 0:01:43]}  Ng5 {[%clk 0:01:20]} 30. Rh5 {[%clk 0:01:44]}  Qg4 {[%clk 0:01:18]} 31. Rh4 {[%clk 0:01:44]}  Qd7 {[%clk 0:01:14]} 32. Qg6 {[%clk 0:01:41]}  Re8 {[%clk 0:01:12]} 33. Bf5 {[%clk 0:01:38]}  Qe7 {[%clk 0:01:07]} 34. Be6 {[%clk 0:01:35]}  Ncxe6 {[%clk 0:01:06]} 35. dxe6 {[%clk 0:01:36]}  Qxe6 {[%clk 0:01:04]} 36. Nd5 {[%clk 0:01:37]}  Ref8 {[%clk 0:00:28]} 37. Rhf4 {[%clk 0:01:24]}  Qh3+ {[%clk 0:00:25]} 38. Kg1 {[%clk 0:01:12]}  Qxg3+ {[%clk 0:00:25]} 39. Kh1 {[%clk 0:01:13]}  Qh3+ {[%clk 0:00:22]} 40. Kg1 {[%clk 0:01:13]}  Qg3+ {[%clk 0:00:18]} 41. Kh1 {[%clk 0:01:13]}  Qh3+ {[%clk 0:00:09]} 42. Kg1 {[%clk 0:01:13]}  Qg3+ {[%clk 0:00:05]} 1/2-1/2


[Site "https://www.chess.com"]

[Event "Titled Tuesday Blitz December 13 Early 2022"]
[White "Balint, Vilmos"]
[Black "Petrovic, Aleksa"]
[WhiteFideId "718050"]
[BlackFideId "967629"]
[WhiteElo "2183"]
[BlackElo "2230"]
[Result "0-1"]
[Round "11"]
[TimeControl "180+1"]
[Date "2022.12.14"]
[WhiteClock "0:01:39"]
[BlackClock "0:00:04"]

1. e4 {[%clk 0:03:00]}  e6 {[%clk 0:02:56]} 2. d4 {[%clk 0:03:00]}  d5 {[%clk 0:02:56]} 3. Nc3 {[%clk 0:03:01]}  Bb4 {[%clk 0:02:55]} 4. exd5 {[%clk 0:03:02]}  exd5 {[%clk 0:02:54]} 5. Bd3 {[%clk 0:03:02]}  Nc6 {[%clk 0:02:52]} 6. Ne2 {[%clk 0:03:01]}  Nge7 {[%clk 0:02:47]} 7. Bf4 {[%clk 0:03:01]}  O-O {[%clk 0:02:46]} 8. Qd2 {[%clk 0:03:02]}  Bf5 {[%clk 0:02:45]} 9. O-O-O {[%clk 0:03:01]}  f6 {[%clk 0:02:32]} 10. f3 {[%clk 0:03:01]}  Na5 {[%clk 0:02:30]} 11. g4 {[%clk 0:03:00]}  Bxd3 {[%clk 0:02:26]} 12. Qxd3 {[%clk 0:03:01]}  Bd6 {[%clk 0:02:14]} 13. h4 {[%clk 0:03:00]}  Bxf4+ {[%clk 0:02:09]} 14. Nxf4 {[%clk 0:02:59]}  Qd6 {[%clk 0:02:09]} 15. Nh5 {[%clk 0:02:54]}  c6 {[%clk 0:01:55]} 16. g5 {[%clk 0:02:53]}  f5 {[%clk 0:01:51]} 17. Rhe1 {[%clk 0:02:53]}  Ng6 {[%clk 0:01:44]} 18. Re2 {[%clk 0:02:47]}  Nxh4 {[%clk 0:01:25]} 19. Rde1 {[%clk 0:02:45]}  Ng6 {[%clk 0:01:18]} 20. b3 {[%clk 0:02:32]}  b5 {[%clk 0:01:08]} 21. Qd2 {[%clk 0:02:29]}  Qa3+ {[%clk 0:01:03]} 22. Kb1 {[%clk 0:02:29]}  Nb7 {[%clk 0:00:45]} 23. Re6 {[%clk 0:02:27]}  Nd6 {[%clk 0:00:32]} 24. Qd3 {[%clk 0:02:14]}  a5 {[%clk 0:00:24]} 25. Ka1 {[%clk 0:02:07]}  a4 {[%clk 0:00:14]} 26. Nb1 {[%clk 0:02:07]}  Qb4 {[%clk 0:00:13]} 27. c3 {[%clk 0:02:07]}  axb3 {[%clk 0:00:12]} 28. R1e2 {[%clk 0:01:56]}  Qa4 {[%clk 0:00:07]} 29. a3 {[%clk 0:01:54]}  Nc4 {[%clk 0:00:05]} 30. Re7 {[%clk 0:01:45]}  Nxa3 {[%clk 0:00:04]} 31. Rxg7+ {[%clk 0:01:45]}  Kh8 {[%clk 0:00:04]} 32. Kb2 {[%clk 0:01:40]}  Nxb1 {[%clk 0:00:04]} 33. Kxb1 {[%clk 0:01:39]}  Qa1# {[%clk 0:00:04]} 0-1


[Site "https://www.chess.com"]

[Event "Titled Tuesday Blitz December 13 Early 2022"]
[White "Begunov, Konstantin"]
[Black "Namitbir Singh Walia"]
[WhiteFideId "4118510"]
[BlackFideId "35071068"]
[WhiteElo "2141"]
[BlackElo "2239"]
[Result "1-0"]
[Round "11"]
[TimeControl "180+1"]
[Date "2022.12.14"]
[WhiteClock "0:00:12"]
[BlackClock "0:00:01"]

1. d4 {[%clk 0:03:00]}  Nf6 {[%clk 0:02:59]} 2. c4 {[%clk 0:03:01]}  c5 {[%clk 0:02:59]} 3. Nf3 {[%clk 0:03:00]}  cxd4 {[%clk 0:02:58]} 4. Nxd4 {[%clk 0:03:01]}  Nc6 {[%clk 0:02:59]} 5. Nc3 {[%clk 0:03:01]}  g6 {[%clk 0:02:59]} 6. g3 {[%clk 0:03:02]}  Bg7 {[%clk 0:02:59]} 7. Bg2 {[%clk 0:03:02]}  O-O {[%clk 0:02:59]} 8. O-O {[%clk 0:03:03]}  Qb6 {[%clk 0:02:56]} 9. Nc2 {[%clk 0:03:02]}  d6 {[%clk 0:02:47]} 10. b3 {[%clk 0:03:02]}  Ne5 {[%clk 0:02:40]} 11. Bb2 {[%clk 0:02:59]}  Nxc4 {[%clk 0:02:32]} 12. Na4 {[%clk 0:02:29]}  Qa6 {[%clk 0:02:15]} 13. Nb4 {[%clk 0:01:23]}  Qb5 {[%clk 0:02:09]} 14. Bxf6 {[%clk 0:01:08]}  Bxf6 {[%clk 0:02:08]} 15. Nd5 {[%clk 0:01:07]}  Ne5 {[%clk 0:01:18]} 16. Nc7 {[%clk 0:01:03]}  Qa5 {[%clk 0:01:07]} 17. Nxa8 {[%clk 0:01:04]}  Nc6 {[%clk 0:01:01]} 18. Rc1 {[%clk 0:00:55]}  Be6 {[%clk 0:01:00]} 19. b4 {[%clk 0:00:48]}  Qxb4 {[%clk 0:00:51]} 20. Nc7 {[%clk 0:00:47]}  Bxa2 {[%clk 0:00:52]} 21. Nd5 {[%clk 0:00:44]}  Bxd5 {[%clk 0:00:50]} 22. Bxd5 {[%clk 0:00:43]}  Nd4 {[%clk 0:00:43]} 23. Rb1 {[%clk 0:00:35]}  Qa5 {[%clk 0:00:38]} 24. Bxb7 {[%clk 0:00:35]}  Rb8 {[%clk 0:00:31]} 25. Be4 {[%clk 0:00:35]}  Rxb1 {[%clk 0:00:30]} 26. Bxb1 {[%clk 0:00:35]}  h5 {[%clk 0:00:21]} 27. e3 {[%clk 0:00:35]}  Ne6 {[%clk 0:00:18]} 28. Bc2 {[%clk 0:00:30]}  h4 {[%clk 0:00:18]} 29. Qg4 {[%clk 0:00:28]}  hxg3 {[%clk 0:00:15]} 30. hxg3 {[%clk 0:00:28]}  Ng7 {[%clk 0:00:12]} 31. Rb1 {[%clk 0:00:26]}  Kh7 {[%clk 0:00:06]} 32. Qh3+ {[%clk 0:00:24]}  Nh5 {[%clk 0:00:07]} 33. g4 {[%clk 0:00:23]}  Qd2 {[%clk 0:00:06]} 34. Bd1 {[%clk 0:00:14]}  Qa2 {[%clk 0:00:06]} 35. Rc1 {[%clk 0:00:14]}  Qa3 {[%clk 0:00:04]} 36. Rb1 {[%clk 0:00:13]}  Qa2 {[%clk 0:00:04]} 37. gxh5 {[%clk 0:00:11]}  Qxb1 {[%clk 0:00:03]} 38. hxg6+ {[%clk 0:00:12]}  Kxg6 {[%clk 0:00:03]} 39. Qg4+ {[%clk 0:00:13]}  Bg5 {[%clk 0:00:02]} 40. Kg2 {[%clk 0:00:14]}  Kf6 {[%clk 0:00:02]} 41. f4 {[%clk 0:00:14]}  Qb7+ {[%clk 0:00:02]} 42. Bf3 {[%clk 0:00:13]}  Qa6 {[%clk 0:00:01]} 43. Qxg5+ {[%clk 0:00:12]} 1-0


[Site "https://www.chess.com"]

[Event "Titled Tuesday Blitz December 13 Early 2022"]
[White "Chernomordik, Pavel"]
[Black "Bazarov, Konstantin"]
[WhiteFideId "2804530"]
[BlackFideId "4137000"]
[WhiteElo "2193"]
[BlackElo "2228"]
[Result "1-0"]
[Round "11"]
[TimeControl "180+1"]
[Date "2022.12.14"]
[WhiteClock "0:00:07"]
[BlackClock "0:00:07"]

1. e4 {[%clk 0:03:00]}  b6 {[%clk 0:02:59]} 2. d4 {[%clk 0:02:59]}  Bb7 {[%clk 0:02:59]} 3. Nc3 {[%clk 0:02:59]}  e6 {[%clk 0:03:00]} 4. Nge2 {[%clk 0:02:59]}  d5 {[%clk 0:02:57]} 5. exd5 {[%clk 0:02:53]}  exd5 {[%clk 0:02:56]} 6. Ng3 {[%clk 0:02:50]}  Nf6 {[%clk 0:02:56]} 7. Bd3 {[%clk 0:02:46]}  Bb4 {[%clk 0:02:51]} 8. O-O {[%clk 0:02:45]}  O-O {[%clk 0:02:50]} 9. Bg5 {[%clk 0:02:44]}  h6 {[%clk 0:02:49]} 10. Be3 {[%clk 0:02:33]}  Bc8 {[%clk 0:02:40]} 11. Nce2 {[%clk 0:02:27]}  Ng4 {[%clk 0:02:35]} 12. Bf4 {[%clk 0:02:18]}  Bd6 {[%clk 0:02:34]} 13. h3 {[%clk 0:02:10]}  Bxf4 {[%clk 0:02:31]} 14. Nxf4 {[%clk 0:02:08]}  Nf6 {[%clk 0:02:32]} 15. c3 {[%clk 0:02:04]}  Nc6 {[%clk 0:02:28]} 16. Qf3 {[%clk 0:02:01]}  Be6 {[%clk 0:02:25]} 17. Rfe1 {[%clk 0:01:59]}  Qd6 {[%clk 0:02:21]} 18. Qe3 {[%clk 0:01:48]}  Bd7 {[%clk 0:02:14]} 19. Nf5 {[%clk 0:01:40]}  Bxf5 {[%clk 0:02:10]} 20. Bxf5 {[%clk 0:01:41]}  Rfe8 {[%clk 0:02:10]} 21. Qf3 {[%clk 0:01:40]}  Ne7 {[%clk 0:02:02]} 22. Bd3 {[%clk 0:01:36]}  c5 {[%clk 0:02:02]} 23. Rad1 {[%clk 0:01:26]}  cxd4 {[%clk 0:01:47]} 24. Bb5 {[%clk 0:01:24]}  Red8 {[%clk 0:01:42]} 25. Rxd4 {[%clk 0:01:22]}  Qc5 {[%clk 0:01:37]} 26. Qe2 {[%clk 0:01:12]}  Nf5 {[%clk 0:01:34]} 27. Rdd1 {[%clk 0:01:09]}  d4 {[%clk 0:01:33]} 28. c4 {[%clk 0:01:07]}  Rac8 {[%clk 0:01:18]} 29. Nd3 {[%clk 0:00:59]}  Qc7 {[%clk 0:01:13]} 30. Ba6 {[%clk 0:00:55]}  Rb8 {[%clk 0:01:11]} 31. Qe5 {[%clk 0:00:52]}  Qxe5 {[%clk 0:01:00]} 32. Nxe5 {[%clk 0:00:52]}  Rd6 {[%clk 0:00:59]} 33. b4 {[%clk 0:00:48]}  Nd7 {[%clk 0:00:54]} 34. Nd3 {[%clk 0:00:42]}  Kf8 {[%clk 0:00:51]} 35. Bb5 {[%clk 0:00:35]}  Nf6 {[%clk 0:00:46]} 36. Re5 {[%clk 0:00:31]}  Ne7 {[%clk 0:00:43]} 37. Rde1 {[%clk 0:00:30]}  Ng6 {[%clk 0:00:42]} 38. R5e2 {[%clk 0:00:28]}  Rdd8 {[%clk 0:00:41]} 39. f4 {[%clk 0:00:25]}  Rbc8 {[%clk 0:00:25]} 40. f5 {[%clk 0:00:25]}  Nh4 {[%clk 0:00:21]} 41. Re7 {[%clk 0:00:24]}  Nxf5 {[%clk 0:00:19]} 42. Rxa7 {[%clk 0:00:24]}  Ne3 {[%clk 0:00:20]} 43. c5 {[%clk 0:00:22]}  bxc5 {[%clk 0:00:19]} 44. bxc5 {[%clk 0:00:22]}  Ra8 {[%clk 0:00:19]} 45. Rxa8 {[%clk 0:00:18]}  Rxa8 {[%clk 0:00:19]} 46. a4 {[%clk 0:00:18]}  Nfd5 {[%clk 0:00:19]} 47. Ne5 {[%clk 0:00:17]}  Nc7 {[%clk 0:00:18]} 48. Bc6 {[%clk 0:00:16]}  Rd8 {[%clk 0:00:17]} 49. Rb1 {[%clk 0:00:15]}  Ke7 {[%clk 0:00:14]} 50. Be4 {[%clk 0:00:14]}  Ke6 {[%clk 0:00:13]} 51. Nc6 {[%clk 0:00:14]}  Re8 {[%clk 0:00:12]} 52. Nxd4+ {[%clk 0:00:12]}  Ke5 {[%clk 0:00:11]} 53. Bc6 {[%clk 0:00:12]}  Rd8 {[%clk 0:00:10]} 54. Nf3+ {[%clk 0:00:12]}  Kf4 {[%clk 0:00:10]} 55. Kf2 {[%clk 0:00:10]}  Nf5 {[%clk 0:00:08]} 56. Rb4+ {[%clk 0:00:09]}  Nd4 {[%clk 0:00:07]} 57. Rxd4+ {[%clk 0:00:09]}  Rxd4 {[%clk 0:00:07]} 58. Nxd4 {[%clk 0:00:09]}  Na6 {[%clk 0:00:06]} 59. Nb3 {[%clk 0:00:09]}  Ke5 {[%clk 0:00:05]} 60. Bb7 {[%clk 0:00:08]}  f5 {[%clk 0:00:05]} 61. Bxa6 {[%clk 0:00:08]}  Kd5 {[%clk 0:00:05]} 62. Bd3 {[%clk 0:00:08]}  Kc6 {[%clk 0:00:06]} 63. Bxf5 {[%clk 0:00:08]}  g5 {[%clk 0:00:07]} 64. Be4+ {[%clk 0:00:07]}  Kc7 {[%clk 0:00:07]} 65. Nd4 {[%clk 0:00:07]} 1-0


[Site "https://www.chess.com"]

[Event "Titled Tuesday Blitz December 13 Early 2022"]
[White "Ciuffoletti, Paolo"]
[Black "Gjestemoen-VonHirsch, Andre"]
[WhiteFideId "807630"]
[BlackFideId "1539531"]
[WhiteElo "2143"]
[BlackElo "2198"]
[Result "1-0"]
[Round "11"]
[TimeControl "180+1"]
[Date "2022.12.14"]
[WhiteClock "0:00:17"]
[BlackClock "0:00:11"]

1. e4 {[%clk 0:03:00]}  g6 {[%clk 0:03:00]} 2. d4 {[%clk 0:02:59]}  Bg7 {[%clk 0:03:00]} 3. Nc3 {[%clk 0:02:59]}  c5 {[%clk 0:02:59]} 4. dxc5 {[%clk 0:02:47]}  Bxc3+ {[%clk 0:02:59]} 5. bxc3 {[%clk 0:02:47]}  Qa5 {[%clk 0:02:59]} 6. Qd4 {[%clk 0:02:38]}  Nf6 {[%clk 0:02:59]} 7. Bh6 {[%clk 0:01:41]}  Nc6 {[%clk 0:02:57]} 8. Qe3 {[%clk 0:01:37]}  Ng4 {[%clk 0:02:49]} 9. Qg3 {[%clk 0:01:12]}  Nxh6 {[%clk 0:02:47]} 10. Bc4 {[%clk 0:01:12]}  Qxc5 {[%clk 0:02:41]} 11. Bb3 {[%clk 0:01:12]}  d6 {[%clk 0:02:34]} 12. Ne2 {[%clk 0:01:08]}  Ng4 {[%clk 0:02:26]} 13. Qf4 {[%clk 0:00:57]}  Nf6 {[%clk 0:02:22]} 14. O-O {[%clk 0:00:49]}  O-O {[%clk 0:02:21]} 15. Rad1 {[%clk 0:00:46]}  Be6 {[%clk 0:02:08]} 16. Rd3 {[%clk 0:00:38]}  Ne5 {[%clk 0:02:03]} 17. Rg3 {[%clk 0:00:35]}  Bc4 {[%clk 0:02:01]} 18. Re1 {[%clk 0:00:30]}  a5 {[%clk 0:01:49]} 19. Nd4 {[%clk 0:00:29]}  a4 {[%clk 0:01:46]} 20. Bxc4 {[%clk 0:00:27]}  Qxc4 {[%clk 0:01:47]} 21. Nf5 {[%clk 0:00:23]}  Qe6 {[%clk 0:00:11]} 22. Qh6 {[%clk 0:00:20]}  Ne8 {[%clk 0:00:11]} 23. Rh3 {[%clk 0:00:17]} 1-0


[Site "https://www.chess.com"]

[Event "Titled Tuesday Blitz December 13 Early 2022"]
[White "Czopor, Maciej"]
[Black "Papasimakopoulos, Alexandros"]
[WhiteFideId "21805431"]
[BlackFideId "4244125"]
[WhiteElo "2324"]
[BlackElo "2384"]
[Result "1-0"]
[Round "11"]
[TimeControl "180+1"]
[Date "2022.12.14"]
[WhiteClock "0:01:19"]
[BlackClock "0:01:32"]

1. c4 {[%clk 0:03:00]}  b6 {[%clk 0:02:50]} 2. Nc3 {[%clk 0:02:59]}  Bb7 {[%clk 0:02:50]} 3. e4 {[%clk 0:02:58]}  e5 {[%clk 0:02:50]} 4. Nf3 {[%clk 0:02:58]}  Nc6 {[%clk 0:02:49]} 5. Be2 {[%clk 0:02:54]}  Nf6 {[%clk 0:02:48]} 6. O-O {[%clk 0:02:54]}  Bc5 {[%clk 0:02:49]} 7. Nxe5 {[%clk 0:02:43]}  Nxe5 {[%clk 0:02:44]} 8. d4 {[%clk 0:02:43]}  Bd6 {[%clk 0:02:45]} 9. f4 {[%clk 0:02:44]}  Nxe4 {[%clk 0:02:26]} 10. fxe5 {[%clk 0:02:24]}  Nxc3 {[%clk 0:02:25]} 11. bxc3 {[%clk 0:02:25]}  Be7 {[%clk 0:02:25]} 12. Bd3 {[%clk 0:02:23]}  d6 {[%clk 0:02:18]} 13. e6 {[%clk 0:02:02]}  fxe6 {[%clk 0:02:18]} 14. Qg4 {[%clk 0:02:02]}  Kd7 {[%clk 0:02:17]} 15. d5 {[%clk 0:01:46]}  Qg8 {[%clk 0:02:14]} 16. dxe6+ {[%clk 0:01:44]}  Kd8 {[%clk 0:02:11]} 17. Rf7 {[%clk 0:01:44]}  h6 {[%clk 0:02:04]} 18. Bd2 {[%clk 0:01:39]}  Bf6 {[%clk 0:01:51]} 19. Rf1 {[%clk 0:01:35]}  Bc6 {[%clk 0:01:51]} 20. R1xf6 {[%clk 0:01:23]}  gxf6 {[%clk 0:01:50]} 21. e7+ {[%clk 0:01:24]}  Ke8 {[%clk 0:01:45]} 22. Rf8+ {[%clk 0:01:25]}  Qxf8 {[%clk 0:01:44]} 23. exf8=Q+ {[%clk 0:01:25]}  Kxf8 {[%clk 0:01:45]} 24. Qe6 {[%clk 0:01:22]}  Rg8 {[%clk 0:01:37]} 25. Qxf6+ {[%clk 0:01:21]}  Ke8 {[%clk 0:01:37]} 26. Bg6+ {[%clk 0:01:20]}  Kd7 {[%clk 0:01:33]} 27. Qf7+ {[%clk 0:01:20]}  Kc8 {[%clk 0:01:33]} 28. Qxg8+ {[%clk 0:01:20]}  Kb7 {[%clk 0:01:34]} 29. Qf7 {[%clk 0:01:19]}  Re8 {[%clk 0:01:32]} 30. Qxe8 {[%clk 0:01:19]} 1-0


[Site "https://www.chess.com"]

[Event "Titled Tuesday Blitz December 13 Early 2022"]
[White "Deac, Bogdan-Daniel"]
[Black "Kamsky, Gata"]
[WhiteFideId "1226380"]
[BlackFideId "2000024"]
[WhiteElo "2649"]
[BlackElo "2666"]
[Result "1-0"]
[Round "11"]
[TimeControl "180+1"]
[Date "2022.12.13"]
[WhiteClock "0:00:08"]
[BlackClock "0:00:03"]

1. e4 {[%clk 0:03:00]}  e5 {[%clk 0:02:57]} 2. Nf3 {[%clk 0:02:58]}  Nc6 {[%clk 0:02:55]} 3. Bb5 {[%clk 0:02:58]}  a6 {[%clk 0:02:53]} 4. Bxc6 {[%clk 0:02:58]}  dxc6 {[%clk 0:02:53]} 5. Nc3 {[%clk 0:02:59]}  Qd6 {[%clk 0:02:47]} 6. d4 {[%clk 0:02:59]}  exd4 {[%clk 0:02:47]} 7. Qxd4 {[%clk 0:03:00]}  Qxd4 {[%clk 0:02:45]} 8. Nxd4 {[%clk 0:03:00]}  Bd7 {[%clk 0:02:46]} 9. Be3 {[%clk 0:02:59]}  O-O-O {[%clk 0:02:46]} 10. O-O-O {[%clk 0:03:00]}  Re8 {[%clk 0:02:37]} 11. f3 {[%clk 0:02:54]}  Ne7 {[%clk 0:02:36]} 12. Nce2 {[%clk 0:02:49]}  f5 {[%clk 0:02:29]} 13. Ng3 {[%clk 0:02:45]}  fxe4 {[%clk 0:02:24]} 14. Nxe4 {[%clk 0:02:44]}  Nd5 {[%clk 0:02:17]} 15. Bd2 {[%clk 0:02:42]}  c5 {[%clk 0:02:15]} 16. Ne2 {[%clk 0:02:42]}  Be7 {[%clk 0:02:04]} 17. N2g3 {[%clk 0:02:36]}  Rhf8 {[%clk 0:02:01]} 18. Rhe1 {[%clk 0:02:33]}  b6 {[%clk 0:01:56]} 19. b3 {[%clk 0:02:33]}  a5 {[%clk 0:01:53]} 20. Kb2 {[%clk 0:02:30]}  Nf4 {[%clk 0:01:40]} 21. Bxf4 {[%clk 0:02:24]}  Rxf4 {[%clk 0:01:41]} 22. Ne2 {[%clk 0:02:24]}  Rff8 {[%clk 0:01:39]} 23. N2c3 {[%clk 0:02:24]}  Bd8 {[%clk 0:01:27]} 24. Rd2 {[%clk 0:02:18]}  Bc6 {[%clk 0:01:22]} 25. Rde2 {[%clk 0:02:13]}  Re6 {[%clk 0:01:18]} 26. a4 {[%clk 0:02:02]}  Rh6 {[%clk 0:01:15]} 27. h3 {[%clk 0:02:00]}  Rg6 {[%clk 0:01:14]} 28. Nb5 {[%clk 0:02:00]}  Kb7 {[%clk 0:01:06]} 29. Rd2 {[%clk 0:01:54]}  Bh4 {[%clk 0:01:04]} 30. Ree2 {[%clk 0:01:53]}  Kb8 {[%clk 0:01:01]} 31. c4 {[%clk 0:01:53]}  Kb7 {[%clk 0:01:00]} 32. Kc2 {[%clk 0:01:49]}  Kb8 {[%clk 0:00:59]} 33. Nec3 {[%clk 0:01:48]}  Bg5 {[%clk 0:00:57]} 34. Rd3 {[%clk 0:01:48]}  Re8 {[%clk 0:00:51]} 35. Rxe8+ {[%clk 0:01:38]}  Bxe8 {[%clk 0:00:51]} 36. Ne4 {[%clk 0:01:37]}  Be7 {[%clk 0:00:49]} 37. g3 {[%clk 0:01:35]}  Rh6 {[%clk 0:00:47]} 38. h4 {[%clk 0:01:35]}  Kc8 {[%clk 0:00:47]} 39. Nbc3 {[%clk 0:01:33]}  Bd8 {[%clk 0:00:44]} 40. Kd2 {[%clk 0:01:30]}  Re6 {[%clk 0:00:41]} 41. Re3 {[%clk 0:01:19]}  h6 {[%clk 0:00:38]} 42. Nd5 {[%clk 0:01:16]}  Bc6 {[%clk 0:00:35]} 43. Nf4 {[%clk 0:01:06]}  Re8 {[%clk 0:00:33]} 44. Ke2 {[%clk 0:01:06]}  g5 {[%clk 0:00:31]} 45. hxg5 {[%clk 0:01:04]}  hxg5 {[%clk 0:00:32]} 46. Nd5 {[%clk 0:01:04]}  Bxd5 {[%clk 0:00:29]} 47. cxd5 {[%clk 0:01:00]}  Kd7 {[%clk 0:00:25]} 48. Nd2 {[%clk 0:00:50]}  Rh8 {[%clk 0:00:25]} 49. Nc4 {[%clk 0:00:49]}  Bf6 {[%clk 0:00:22]} 50. Re6 {[%clk 0:00:43]}  Bd4 {[%clk 0:00:19]} 51. Rg6 {[%clk 0:00:42]}  Re8+ {[%clk 0:00:18]} 52. Kd3 {[%clk 0:00:41]}  Rf8 {[%clk 0:00:19]} 53. Ke4 {[%clk 0:00:40]}  Re8+ {[%clk 0:00:19]} 54. Kf5 {[%clk 0:00:41]}  Rf8+ {[%clk 0:00:18]} 55. Kg4 {[%clk 0:00:40]}  Bf6 {[%clk 0:00:19]} 56. Nd2 {[%clk 0:00:32]}  Be7 {[%clk 0:00:15]} 57. Ne4 {[%clk 0:00:31]}  Rh8 {[%clk 0:00:12]} 58. Nxg5 {[%clk 0:00:15]}  Rh1 {[%clk 0:00:12]} 59. Nf7 {[%clk 0:00:15]}  Rd1 {[%clk 0:00:09]} 60. Ne5+ {[%clk 0:00:14]}  Kc8 {[%clk 0:00:05]} 61. Rg8+ {[%clk 0:00:14]}  Kb7 {[%clk 0:00:04]} 62. f4 {[%clk 0:00:08]}  Rxd5 {[%clk 0:00:03]} 63. Kf5 {[%clk 0:00:08]} 1-0


[Site "https://www.chess.com"]